fUST/lending_fUST_20260118
["ID","MTS","AMOUNT","RATE_DAILY","PERIOD"]
[402500303,1768689041984,-2000.0,0.00016208,2]
[402500305,1768689041994,-121.29511407,0.00016208,2]
[402500741,1768689046714,-112.22377934,0.00016208,2]
[402500743,1768689046724,-343.03408281,0.00016208,2]
[402500745,1768689046733,-500.0,0.00016208,2]
[402500747,1768689046743,-27.76027241,0.00016208,2]
[402500752,1768689046773,-214.39882005,0.00016208,2]
[402500754,1768689046782,-500.0,0.00016208,2]
[402500755,1768689046791,-251.11897888,0.00016208,2]
[402500757,1768689046800,-500.0,0.00016208,2]
[402500759,1768689046809,-260.4103811,0.00016208,2]
[402500761,1768689046818,-500.0,0.00016208,2]
[402500763,1768689046828,-270.0455652,0.00016208,2]
[402500765,1768689046837,-500.0,0.00016208,2]
[402500767,1768689046846,-280.03725112,0.00016208,2]
[402500769,1768689046855,-231.36846651,0.00016208,2]
[402500771,1768689046864,-290.39862941,0.00016208,2]
[402500773,1768689046873,-301.1433787,0.00016208,2]
[402500775,1768689046883,-2150.738,0.00016208,2]
[402500777,1768689046892,-4930.70095406,0.00016326,2]
[402500779,1768689046903,-21426.65348868,0.00016326,2]
[402500781,1768689046914,-1790.01611463,0.00016326,2]
[402500783,1768689046924,-306.72417695,0.00016326,2]
[402501855,1768689058170,2417.27690881,0.00012842,2]
[402501858,1768689058195,2582.72309119,0.00012842,2]
[402502368,1768689073604,5000.0,0.00012842,2]
[402502369,1768689103081,209.969,0.0001271,2]
[402502370,1768689201987,259.50283472,0.00024005,120]
[402502372,1768689306710,166.0,0.00023261,120]
[402502393,1768689805746,1444.0,0.00026137,120]
[402502394,1768689995151,300.0,0.00011962,2]
[402502453,1768690232395,-174.0,0.0001286,2]
[402502454,1768690232406,-300.0,0.0001286,2]
[402502455,1768690232417,-300.0,0.0001286,2]
[402502456,1768690232426,-1200.0,0.0001286,2]
[402502457,1768690232437,-500.0,0.00012861,2]
[402502458,1768690232448,-50000.0,0.00012861,2]
[402502459,1768690232459,-536.58765406,0.00012861,2]
[402502460,1768690232468,-608.36029024,0.00012861,2]
[402502461,1768690232478,-93008.28568988,0.00012862,2]
[402502495,1768690237911,-162.50893431,0.00012861,2]
[402502497,1768690237921,-9611.31109686,0.00012862,2]
[402502498,1768690237933,-3779.88702177,0.00012862,2]
[402502499,1768690237944,-4382.5499789,0.00012862,2]
[402502500,1768690237971,-889217.96621259,0.00012862,2]
[402502501,1768690237981,-1146.48475074,0.000129,2]
[402502502,1768690237991,-151.0,0.00013,2]
[402502503,1768690238001,-151.0,0.00013,2]
[402502504,1768690238011,-151.0,0.00013,2]
[402502505,1768690238021,-151.0,0.00013,2]
[402502506,1768690238030,-151.0,0.00013,2]
[402502507,1768690238040,-151.0,0.00013,2]
[402502508,1768690238049,-151.0,0.00013,2]
[402502509,1768690238059,-151.0,0.00013,2]
[402502510,1768690238068,-151.0,0.00013,2]
[402502511,1768690238078,-151.0,0.00013,2]
[402502512,1768690238087,-151.0,0.00013,2]
[402502513,1768690238096,-151.0,0.00013,2]
[402502514,1768690238105,-151.0,0.00013,2]
[402502515,1768690238115,-151.0,0.00013,2]
[402502516,1768690238124,-151.0,0.00013,2]
[402502517,1768690238133,-151.0,0.00013,2]
[402502518,1768690238143,-151.0,0.00013,2]
[402502519,1768690238152,-151.0,0.00013,2]
[402502520,1768690238160,-151.0,0.00013,2]
[402502521,1768690238169,-151.0,0.00013,2]
[402502522,1768690238177,-151.0,0.00013,2]
[402502523,1768690238185,-500.0,0.00013135,2]
[402502524,1768690238194,-502.83955258,0.00013273,2]
[402502525,1768690238202,-505.25947973,0.00013273,2]
[402502526,1768690238210,-500.0,0.00013273,2]
[402502527,1768690238219,-505.69222847,0.00013273,2]
[402502528,1768690238228,-500.0,0.00013273,2]
[402502530,1768690238237,-453.71259255,0.00013273,2]
[402502532,1768690238246,-500.0,0.00013273,2]
[402502534,1768690238256,-374.47725203,0.00013273,2]
[402502536,1768690238265,-522.04357159,0.00013273,2]
[402502538,1768690238274,-500.0,0.00013273,2]
[402502540,1768690238283,-166.45896527,0.00013273,2]
[402502542,1768690238296,-500.0,0.00013273,2]
[402502544,1768690238305,-500.0,0.00013273,2]
[402502546,1768690238314,-500.0,0.00013273,2]
[402502548,1768690238323,-601.16084877,0.00013273,2]
[402502550,1768690238333,-500.0,0.00013273,2]
[402502552,1768690238342,-500.0,0.00013273,2]
[402502553,1768690238351,-500.0,0.00013273,2]
[402502555,1768690238362,-500.0,0.00013273,2]
[402502556,1768690238371,-500.0,0.00013273,2]
[402502557,1768690238381,-500.0,0.00013273,2]
[402502558,1768690238390,-500.0,0.00013273,2]
[402502559,1768690238399,-494.39702115,0.00013409,2]
[402502561,1768690238409,-1146.48475072,0.00013414,2]
[402502563,1768690238418,-300.0,0.00013673,2]
[402502564,1768690238427,-958.3,0.00013698,2]
[402502565,1768690238437,-958.3,0.00013698,2]
[402502566,1768690238446,-958.3,0.00013698,2]
[402502567,1768690238455,-958.3,0.00013698,2]
[402502568,1768690238465,-958.3,0.00013698,2]
[402502569,1768690238474,-958.3,0.00013698,2]
[402502570,1768690238483,-958.3,0.00013698,2]
[402502571,1768690238492,-958.3,0.00013698,2]
[402502572,1768690238501,-958.3,0.00013698,2]
[402502573,1768690238510,-958.3,0.00013698,2]
[402502574,1768690238519,-958.3,0.00013698,2]
[402502575,1768690238529,-958.3,0.00013698,2]
[402502576,1768690238538,-958.3,0.00013698,2]
[402502577,1768690238547,-958.3,0.00013698,2]
[402502578,1768690238557,-958.3,0.00013698,2]
[402502579,1768690238566,-958.3,0.00013698,2]
[402502580,1768690238576,-958.3,0.00013698,2]
[402502581,1768690238586,-958.3,0.00013698,2]
[402502582,1768690238595,-958.3,0.00013698,2]
[402502583,1768690238605,-958.3,0.00013698,2]
[402502584,1768690238615,-958.3,0.00013698,2]
[402502585,1768690238625,-958.3,0.00013698,2]
[402502586,1768690238634,-958.3,0.00013698,2]
[402502587,1768690238644,-958.38907998,0.00013698,2]
[402502588,1768690238653,-1325.75,0.00013698,2]
[402502589,1768690238662,-1325.75,0.00013698,2]
[402502590,1768690238672,-1325.75,0.00013698,2]
[402502591,1768690238682,-1325.75,0.00013698,2]
[402502592,1768690238691,-1325.75,0.00013698,2]
[402502593,1768690238701,-1325.75,0.00013698,2]
[402502594,1768690238711,-1325.75,0.00013698,2]
[402502595,1768690238721,-1325.75,0.00013698,2]
[402502596,1768690238730,-1325.75,0.00013698,2]
[402502597,1768690238740,-1325.75,0.00013698,2]
[402502598,1768690238749,-1325.75,0.00013698,2]
[402502599,1768690238759,-1325.75,0.00013698,2]
[402502600,1768690238768,-1325.75,0.00013698,2]
[402502601,1768690238778,-1325.75,0.00013698,2]
[402502602,1768690238788,-1325.75,0.00013698,2]
[402502603,1768690238797,-1325.75,0.00013698,2]
[402502604,1768690238807,-1325.75,0.00013698,2]
[402502605,1768690238816,-1325.75,0.00013698,2]
[402502606,1768690238826,-1325.75,0.00013698,2]
[402502607,1768690238835,-1325.75,0.00013698,2]
[402502608,1768690238844,-1325.75,0.00013698,2]
[402502609,1768690238855,-1325.75,0.00013698,2]
[402502610,1768690238865,-1325.75,0.00013698,2]
[402502611,1768690238875,-1325.83547327,0.00013698,2]
[402502612,1768690238884,-500.0,0.00013698,2]
[402502613,1768690238894,-500.0,0.00013698,2]
[402502614,1768690238904,-275.23827501,0.00013698,2]
[402502615,1768690238913,-500.0,0.00013698,2]
[402502616,1768690238923,-500.0,0.00013698,2]
[402502617,1768690238930,-500.0,0.00013698,2]
[402502618,1768690238937,-500.0,0.00013698,2]
[402502619,1768690238944,-500.0,0.00013698,2]
[402502620,1768690238951,-500.0,0.00013698,2]
[402502621,1768690238958,-500.0,0.00013698,2]
[402502622,1768690238965,-589.78946072,0.00013698,2]
[402502623,1768690238974,-1515.22,0.00013698,2]
[402502624,1768690238981,-1515.22,0.00013698,2]
[402502625,1768690238988,-1515.22,0.00013698,2]
[402502626,1768690238996,-1515.22,0.00013698,2]
[402502627,1768690239003,-1515.22,0.00013698,2]
[402502628,1768690239012,-1515.22,0.00013698,2]
[402502629,1768690239021,-1515.22,0.00013698,2]
[402502630,1768690239031,-1515.22,0.00013698,2]
[402502631,1768690239041,-1515.22,0.00013698,2]
[402502632,1768690239050,-1515.22,0.00013698,2]
[402502633,1768690239060,-1515.22,0.00013698,2]
[402502634,1768690239069,-1515.22,0.00013698,2]
[402502635,1768690239079,-1515.22,0.00013698,2]
[402502636,1768690239088,-1515.22,0.00013698,2]
[402502637,1768690239098,-1515.22,0.00013698,2]
[402502638,1768690239107,-1515.22,0.00013698,2]
[402502639,1768690239116,-1515.22,0.00013698,2]
[402502640,1768690239125,-1515.22,0.00013698,2]
[402502641,1768690239134,-1515.22,0.00013698,2]
[402502642,1768690239144,-1515.22,0.00013698,2]
[402502643,1768690239153,-1515.22,0.00013698,2]
[402502644,1768690239163,-1515.22,0.00013698,2]
[402502645,1768690239173,-1515.22,0.00013698,2]
[402502646,1768690239182,-1515.40101919,0.00013698,2]
[402502647,1768690239191,-500.0,0.00013698,2]
[402502648,1768690239201,-500.0,0.00013698,2]
[402502649,1768690239210,-500.0,0.00013698,2]
[402502650,1768690239220,-500.0,0.00013698,2]
[402502651,1768690239230,-500.0,0.00013698,2]
[402502652,1768690239239,-500.0,0.00013698,2]
[402502653,1768690239249,-500.0,0.00013698,2]
[402502654,1768690239258,-500.0,0.00013698,2]
[402502655,1768690239268,-204.90208499,0.00013698,2]
[402502656,1768690239277,-500.0,0.00013698,2]
[402502657,1768690239287,-500.0,0.00013698,2]
[402502658,1768690239299,-500.0,0.00013698,2]
[402502659,1768690239308,-500.0,0.00013698,2]
[402502660,1768690239318,-500.0,0.00013698,2]
[402502661,1768690239328,-500.0,0.00013698,2]
[402502662,1768690239338,-500.0,0.00013698,2]
[402502663,1768690239348,-500.0,0.00013698,2]
[402502664,1768690239358,-500.0,0.00013698,2]
[402502665,1768690239367,-500.0,0.00013698,2]
[402502666,1768690239377,-500.0,0.00013698,2]
[402502667,1768690239387,-500.0,0.00013698,2]
[402502668,1768690239396,-975.4,0.00013698,2]
[402502669,1768690239407,-975.4,0.00013698,2]
[402502670,1768690239418,-975.4,0.00013698,2]
[402502671,1768690239429,-975.4,0.00013698,2]
[402502673,1768690239440,-975.4,0.00013698,2]
[402502675,1768690239450,-975.4,0.00013698,2]
[402502676,1768690239461,-975.4,0.00013698,2]
[402502677,1768690239471,-975.4,0.00013698,2]
[402502678,1768690239480,-975.4,0.00013698,2]
[402502679,1768690239490,-975.4,0.00013698,2]
[402502680,1768690239500,-975.4,0.00013698,2]
[402502681,1768690239510,-975.4,0.00013698,2]
[402502682,1768690239519,-975.4,0.00013698,2]
[402502683,1768690239529,-975.4,0.00013698,2]
[402502684,1768690239538,-975.4,0.00013698,2]
[402502685,1768690239548,-975.4,0.00013698,2]
[402502686,1768690239557,-975.4,0.00013698,2]
[402502687,1768690239567,-975.4,0.00013698,2]
[402502688,1768690239576,-975.4,0.00013698,2]
[402502689,1768690239586,-975.4,0.00013698,2]
[402502690,1768690239595,-975.4,0.00013698,2]
[402502691,1768690239604,-975.4,0.00013698,2]
[402502692,1768690239613,-975.4,0.00013698,2]
[402502693,1768690239622,-975.56822598,0.00013698,2]
[402502694,1768690239632,-1125.11,0.00013698,2]
[402502695,1768690239642,-1125.11,0.00013698,2]
[402502696,1768690239651,-1125.11,0.00013698,2]
[402502697,1768690239660,-1125.11,0.00013698,2]
[402502698,1768690239669,-1125.11,0.00013698,2]
[402502699,1768690239679,-1125.11,0.00013698,2]
[402502700,1768690239688,-1125.11,0.00013698,2]
[402502701,1768690239698,-1125.11,0.00013698,2]
[402502702,1768690239708,-1125.11,0.00013698,2]
[402502703,1768690239717,-1125.11,0.00013698,2]
[402502704,1768690239726,-1125.11,0.00013698,2]
[402502705,1768690239736,-1125.11,0.00013698,2]
[402502706,1768690239745,-1125.11,0.00013698,2]
[402502707,1768690239755,-1125.11,0.00013698,2]
[402502708,1768690239764,-1125.11,0.00013698,2]
[402502709,1768690239773,-1125.11,0.00013698,2]
[402502710,1768690239783,-1125.11,0.00013698,2]
[402502711,1768690239792,-1125.11,0.00013698,2]
[402502712,1768690239802,-1125.11,0.00013698,2]
[402502713,1768690239811,-1125.11,0.00013698,2]
[402502714,1768690239821,-1125.11,0.00013698,2]
[402502715,1768690239830,-1125.11,0.00013698,2]
[402502716,1768690239840,-1125.11,0.00013698,2]
[402502717,1768690239849,-1125.26885637,0.00013698,2]
[402502718,1768690239859,-500.0,0.00013698,2]
[402502719,1768690239869,-500.0,0.00013698,2]
[402502720,1768690239878,-500.0,0.00013698,2]
[402502721,1768690239887,-500.0,0.00013698,2]
[402502722,1768690239897,-500.0,0.00013698,2]
[402502723,1768690239907,-500.0,0.00013698,2]
[402502724,1768690239915,-500.0,0.00013698,2]
[402502725,1768690239925,-500.0,0.00013698,2]
[402502726,1768690239935,-500.0,0.00013698,2]
[402502727,1768690239943,-500.0,0.00013698,2]
[402502728,1768690239953,-500.0,0.00013698,2]
[402502729,1768690239962,-500.0,0.00013698,2]
[402502730,1768690239971,-500.0,0.00013698,2]
[402502731,1768690239981,-500.0,0.00013698,2]
[402502732,1768690239991,-500.0,0.00013698,2]
[402502733,1768690240001,-500.0,0.00013698,2]
[402502734,1768690240010,-500.0,0.00013698,2]
[402502735,1768690240019,-500.0,0.00013698,2]
[402502736,1768690240028,-500.0,0.00013698,2]
[402502737,1768690240037,-436.72021913,0.00013698,2]
[402502738,1768690240046,-505.79259852,0.00013698,2]
[402502739,1768690240055,-3888.61,0.00013698,2]
[402502740,1768690240064,-3888.61,0.00013698,2]
[402502741,1768690240074,-3888.61,0.00013698,2]
[402502742,1768690240083,-3888.61,0.00013698,2]
[402502743,1768690240092,-3888.61,0.00013698,2]
[402502744,1768690240101,-3888.61,0.00013698,2]
[402502745,1768690240111,-3888.61,0.00013698,2]
[402502746,1768690240120,-3888.61,0.00013698,2]
[402502747,1768690240129,-3888.61,0.00013698,2]
[402502748,1768690240138,-3888.61,0.00013698,2]
[402502749,1768690240147,-3888.61,0.00013698,2]
[402502750,1768690240159,-3888.61,0.00013698,2]
[402502751,1768690240169,-3888.61,0.00013698,2]
[402502752,1768690240179,-3888.61,0.00013698,2]
[402502753,1768690240188,-3888.61,0.00013698,2]
[402502754,1768690240198,-3888.61,0.00013698,2]
[402502755,1768690240207,-3888.61,0.00013698,2]
[402502756,1768690240216,-3888.61,0.00013698,2]
[402502758,1768690240226,-3888.61,0.00013698,2]
[402502759,1768690240236,-3888.61,0.00013698,2]
[402502760,1768690240245,-3888.61,0.00013698,2]
[402502761,1768690240256,-3888.61,0.00013698,2]
[402502762,1768690240266,-3888.61,0.00013698,2]
[402502763,1768690240275,-3888.71705445,0.00013698,2]
[402502765,1768690240285,-500.0,0.00013698,2]
[402502767,1768690240297,-500.0,0.00013698,2]
[402502769,1768690240306,-500.0,0.00013698,2]
[402502771,1768690240316,-500.0,0.00013698,2]
[402502773,1768690240327,-567.1775226,0.00013698,2]
[402502775,1768690240337,-1000.0,0.00013698,2]
[402502777,1768690240347,-1000.0,0.00013698,2]
[402502779,1768690240356,-1000.0,0.00013698,2]
[402502781,1768690240365,-1000.0,0.00013698,2]
[402502783,1768690240374,-1000.0,0.00013698,2]
[402502784,1768690240383,-1000.0,0.00013698,2]
[402502786,1768690240392,-1000.0,0.00013698,2]
[402502789,1768690240401,-1019.17213815,0.00013698,2]
[402502790,1768690240410,-1000.0,0.00013699,2]
[402502792,1768690240420,-500.0,0.00013699,2]
[402502795,1768690240429,-587.52830239,0.00013699,2]
[402502796,1768690240438,-310.63775509,0.00013699,2]
[402502798,1768690240448,-500.0,0.00013699,2]
[402502800,1768690240457,-194.1362209,0.00013699,2]
[402502802,1768690240467,-502.15537152,0.00013699,2]
[402502804,1768690240476,-500.0,0.00013699,2]
[402502806,1768690240485,-500.0,0.00013699,2]
[402502808,1768690240495,-500.0,0.00013699,2]
[402502810,1768690240504,-500.0,0.00013699,2]
[402502812,1768690240513,-431.73453214,0.00013699,2]
[402502814,1768690240522,-500.0,0.00013699,2]
[402502816,1768690240531,-500.0,0.00013699,2]
[402502818,1768690240540,-500.0,0.00013699,2]
[402502820,1768690240550,-500.0,0.00013699,2]
[402502822,1768690240559,-500.0,0.00013699,2]
[402502824,1768690240568,-160.0,0.00013699,2]
[402502826,1768690240577,-500.0,0.00013699,2]
[402502828,1768690240587,-238.2,0.00013699,2]
[402502830,1768690240596,-158.0,0.00013699,2]
[402502832,1768690240606,-238.0,0.00013699,2]
[402502834,1768690240615,-160.0,0.00013699,2]
[402502836,1768690240625,-158.0,0.00013699,2]
[402502838,1768690240634,-500.0,0.00013699,2]
[402502840,1768690240644,-500.0,0.00013699,2]
[402502842,1768690240654,-158.2,0.00013699,2]
[402502844,1768690240662,-158.0,0.00013699,2]
[402502846,1768690240672,-500.0,0.00013699,2]
[402502848,1768690240681,-158.0,0.00013699,2]
[402502850,1768690240690,-500.0,0.00013699,2]
[402502852,1768690240699,-500.0,0.00013699,2]
[402502854,1768690240708,-500.0,0.00013699,2]
[402502856,1768690240720,-500.0,0.00013699,2]
[402502858,1768690240729,-250.52997418,0.00013699,2]
[402502860,1768690240738,-500.0,0.00013699,2]
[402502862,1768690240748,-500.0,0.00013699,2]
[402502864,1768690240757,-500.0,0.00013699,2]
[402502866,1768690240766,-500.0,0.00013699,2]
[402502868,1768690240775,-500.0,0.00013699,2]
[402502870,1768690240784,-207.07964308,0.00013699,2]
[402502872,1768690240793,-1000.0,0.00013821,2]
[402502873,1768690240801,-1000.0,0.00013821,2]
[402502875,1768690240810,-1000.0,0.00013821,2]
[402502877,1768690240819,-1000.0,0.00013821,2]
[402502879,1768690240828,-1000.0,0.00013821,2]
[402502881,1768690240837,-1000.0,0.00013821,2]
[402502883,1768690240847,-1000.0,0.00013821,2]
[402502885,1768690240856,-1000.0,0.00013821,2]
[402502887,1768690240865,-1000.0,0.00013821,2]
[402502889,1768690240874,-154.30188776,0.00013821,2]
[402502891,1768690240883,-1000.85139614,0.00013821,2]
[402502893,1768690240892,-1000.0,0.00013821,2]
[402502895,1768690240901,-1000.0,0.00013821,2]
[402502897,1768690240910,-1000.0,0.00013821,2]
[402502899,1768690240919,-1146.48475072,0.00013929,2]
[402502901,1768690240929,-100000.0,0.00014006,2]
[402502903,1768690240938,-269.96129392,0.00014074,7]
[402502905,1768690240947,-420.0,0.00014106,2]
[402502907,1768690240957,-600.0,0.00014221,2]
[402502909,1768690240966,-1000.0,0.00014247,2]
[402502911,1768690240974,-1000.0,0.00014247,2]
[402502913,1768690240983,-1148.13731473,0.00014247,2]
[402502915,1768690240993,-1019.10615049,0.00014247,2]
[402502917,1768690241002,-666.91973232,0.00014247,2]
[402502919,1768690241011,-500.0,0.00014247,2]
[402502920,1768690241020,-250.0,0.00014247,2]
[402502922,1768690241029,-920.73215922,0.00014247,2]
[402502924,1768690241039,-1000.0,0.00014247,2]
[402502926,1768690241048,-505.85156425,0.00014247,2]
[402502928,1768690241059,-505.35037186,0.00014247,2]
[402502930,1768690241068,-1140.95571878,0.00014247,2]
[402502932,1768690241077,-186.7596,0.00014247,2]
[402502934,1768690241086,-1002.84499725,0.00014247,2]
[402502936,1768690241096,-502.90945713,0.00014247,2]
[402502938,1768690241105,-1000.0,0.00014247,2]
[402502940,1768690241114,-1000.0,0.00014247,2]
[402502942,1768690241123,-1097.74982003,0.00014247,2]
[402502944,1768690241132,-1000.0,0.00014247,2]
[402502946,1768690241142,-500.43334725,0.00014247,2]
[402502948,1768690241151,-500.85672121,0.00014247,2]
[402502950,1768690241159,-1000.0,0.00014247,2]
[402502952,1768690241168,-1000.0,0.00014247,2]
[402502954,1768690241177,-1000.0,0.00014247,2]
[402502956,1768690241187,-371.81,0.00014268,2]
[402502958,1768690241195,-239.92258785,0.00014293,7]
[402502960,1768690241204,-1500.0,0.00014368,2]
[402502962,1768690241213,-970.89070314,0.00014368,2]
[402502964,1768690241222,-1500.0,0.00014368,2]
[402502966,1768690241232,-1500.0,0.00014368,2]
[402502968,1768690241242,-1000.0,0.00014368,2]
[402502969,1768690241253,-1500.0,0.00014368,2]
[402502972,1768690241262,-1500.0,0.00014368,2]
[402502974,1768690241272,-1500.0,0.00014368,2]
[402502976,1768690241283,-1504.04282277,0.00014368,2]
[402502977,1768690241296,-1500.0,0.00014368,2]
[402502979,1768690241306,-3413.7490911,0.00014428,2]
[402502981,1768690241315,-1146.48475072,0.00014443,2]
[402502983,1768690241324,-5000.0,0.0001451,2]
[402502985,1768690241335,-239.92258785,0.00014567,7]
[402502987,1768690241344,-7408.87449414,0.00014628,2]
[402502989,1768690241353,-900.0,0.00014768,2]
[402502991,1768690241363,-160.83132082,0.00014795,2]
[402502993,1768690241372,-993.74297815,0.00014795,2]
[402502995,1768690241382,-201.38164885,0.00014795,2]
[402502997,1768690241391,-1500.0,0.00014795,2]
[402502999,1768690241400,-1500.0,0.00014795,2]
[402503001,1768690241410,-1500.0,0.00014795,2]
[402503003,1768690241420,-1500.0,0.00014795,2]
[402503005,1768690241429,-1500.0,0.00014795,2]
[402503007,1768690241439,-1000.0,0.00014795,2]
[402503009,1768690241448,-502.31117812,0.00014795,2]
[402503011,1768690241457,-191.76054249,0.00014861,2]
[402503013,1768690241467,-199.93548987,0.00014896,7]
[402503015,1768690241476,-1706.44598023,0.00014916,2]
[402503017,1768690241485,-504.15629489,0.00014916,2]
[402503019,1768690241494,-2000.0,0.00014916,2]
[402503021,1768690241503,-1500.0,0.00014916,2]
[402503023,1768690241513,-2000.0,0.00014916,2]
[402503025,1768690241522,-2000.0,0.00014916,2]
[402503027,1768690241532,-180.10446059,0.0001494,2]
[402503029,1768690241541,-1146.48475072,0.00014957,2]
[402503031,1768690241551,-10000.0,0.00015057,2]
[402503033,1768690241560,-1308.98,0.00015057,2]
[402503035,1768690241569,-10000.0,0.00015114,2]
[402503037,1768690241579,-10000.0,0.00015114,2]
[402503039,1768690241589,-10000.0,0.00015114,2]
[402503041,1768690241599,-2317.5,0.00015114,2]
[402503043,1768690241608,-1200.0,0.00015316,2]
[402503045,1768690241617,-2000.0,0.00015342,2]
[402503047,1768690241627,-2000.0,0.00015342,2]
[402503049,1768690241637,-2000.0,0.00015342,2]
[402503051,1768690241647,-2000.0,0.00015342,2]
[402503053,1768690241656,-6329.67666276,0.00015398,2]
[402503055,1768690241665,-341.906626,0.00015409,2]
[402503057,1768690241675,-2500.0,0.00015464,2]
[402503059,1768690241684,-500.0,0.00015464,2]
[402503061,1768690241694,-587.0,0.00015471,2]
[402503063,1768690241704,-160.0,0.00015506,2]
[402503065,1768690241714,-1041.66666667,0.00015506,2]
[402503067,1768690241724,-451.0,0.00015525,2]
[402503068,1768690241734,-451.0,0.00015558,2]
[402503070,1768690241744,-451.0,0.00015607,2]
[402503087,1768690241902,-451.0,0.00015651,2]
[402503089,1768690241912,-451.0,0.00015698,2]
[402503091,1768690241922,-451.0,0.00015849,2]
[402503093,1768690241931,-22257.4743817,0.00015854,2]
[402503095,1768690241941,-3612.2480408,0.00015854,2]
[402503097,1768690241950,-176.7211808,0.00015854,2]
[402503099,1768690241960,-15829.0374134,0.00015854,2]
[402503101,1768690241970,-903.86573033,0.00015864,2]
[402503103,1768690241979,-1206.13735223,0.0001589,2]
[402503105,1768690241989,-2500.0,0.0001589,2]
[402503107,1768690241998,-13205.58024209,0.00015966,2]
[402503109,1768690242008,-451.0,0.00015972,2]
[402503111,1768690242017,-451.0,0.00015982,2]
[402503113,1768690242027,-168.0,0.00015992,2]
[402503115,1768690242036,-451.0,0.00016008,2]
[402503117,1768690242045,-3000.0,0.00016012,2]
[402503119,1768690242055,-451.0,0.00016065,2]
[402503121,1768690242064,-151.0,0.00016066,2]
[402503123,1768690242074,-250.0,0.00016066,2]
[402503125,1768690242083,-2000.0,0.00016066,2]
[402503127,1768690242093,-250.0,0.00016066,2]
[402503129,1768690242102,-250.0,0.00016066,2]
[402503131,1768690242111,-2000.0,0.00016066,2]
[402503133,1768690242121,-250.0,0.00016066,2]
[402503135,1768690242130,-2000.0,0.00016066,2]
[402503137,1768690242140,-500.0,0.00016066,2]
[402503139,1768690242149,-2000.0,0.00016066,2]
[402503141,1768690242159,-445.202766,0.00016066,2]
[402503143,1768690242169,-162.380719,0.00016066,2]
[402503145,1768690242178,-500.0,0.00016066,2]
[402503147,1768690242188,-2000.0,0.00016066,2]
[402503149,1768690242197,-168.3888056,0.00016066,2]
[402503151,1768690242207,-500.0,0.00016066,2]
[402503153,1768690242217,-2000.0,0.00016066,2]
[402503155,1768690242226,-174.61919141,0.00016066,2]
[402503157,1768690242235,-2000.0,0.00016066,2]
[402503159,1768690242244,-181.08010149,0.00016066,2]
[402503161,1768690242253,-500.0,0.00016066,2]
[402503163,1768690242263,-151.0,0.00016066,2]
[402503165,1768690242272,-2000.0,0.00016066,2]
[402503168,1768690242281,-2150.738,0.00016066,2]
[402503170,1768690242294,-187.78006525,0.00016066,2]
[402503172,1768690242303,-500.0,0.00016066,2]
[402503175,1768690242313,-151.0,0.00016066,2]
[402503177,1768690242322,-2000.0,0.00016066,2]
[402503179,1768690242333,-194.72792766,0.00016066,2]
[402503182,1768690242342,-500.0,0.00016066,2]
[402503184,1768690242352,-151.0,0.00016066,2]
[402503186,1768690242364,-2000.0,0.00016066,2]
[402503188,1768690242373,-500.0,0.00016066,2]
[402503190,1768690242382,-151.0,0.00016066,2]
[402503192,1768690242391,-2000.0,0.00016066,2]
[402503194,1768690242400,-500.0,0.00016066,2]
[402503196,1768690242410,-201.18700456,0.00016066,2]